[Event "Titled Tuesday Blitz February 21 Early 2023"]
[White "Tworuszka, Michal"]
[Black "Hernandez Jimenez, Alexander Andres"]
[WhiteFideId "1117858"]
[BlackFideId "3900452"]
[WhiteElo "2260"]
[BlackElo "2134"]
[Result "1/2-1/2"]
[Round "04"]
[TimeControl "180+2"]
[Date "2023.02.21"]
[WhiteClock "0:00:04"]
[BlackClock "0:00:59"]

1. d4 {[%clk 0:03:00]}  Nf6 {[%clk 0:02:58]} 2. c4 {[%clk 0:03:00]}  e6 {[%clk 0:02:58]} 3. g3 {[%clk 0:02:59]}  Bb4+ {[%clk 0:02:56]} 4. Bd2 {[%clk 0:02:57]}  a5 {[%clk 0:02:54]} 5. Bg2 {[%clk 0:02:56]}  Qe7 {[%clk 0:02:43]} 6. Nf3 {[%clk 0:02:55]}  O-O {[%clk 0:02:42]} 7. O-O {[%clk 0:02:53]}  Bxd2 {[%clk 0:02:42]} 8. Nbxd2 {[%clk 0:02:52]}  d6 {[%clk 0:02:42]} 9. e4 {[%clk 0:02:52]}  Nbd7 {[%clk 0:02:42]} 10. Qe2 {[%clk 0:02:51]}  e5 {[%clk 0:02:43]} 11. d5 {[%clk 0:02:49]}  Nc5 {[%clk 0:02:41]} 12. Ne1 {[%clk 0:02:48]}  c6 {[%clk 0:02:28]} 13. Nd3 {[%clk 0:02:42]}  cxd5 {[%clk 0:02:25]} 14. Nxc5 {[%clk 0:02:39]}  dxc5 {[%clk 0:02:25]} 15. exd5 {[%clk 0:02:22]}  Qd6 {[%clk 0:02:23]} 16. Rfe1 {[%clk 0:02:08]}  Re8 {[%clk 0:02:23]} 17. f4 {[%clk 0:02:06]}  Bg4 {[%clk 0:02:22]} 18. fxe5 {[%clk 0:02:01]}  Bxe2 {[%clk 0:02:15]} 19. exd6 {[%clk 0:02:00]}  Rad8 {[%clk 0:02:10]} 20. Bf1 {[%clk 0:01:26]}  Bxf1 {[%clk 0:02:08]} 21. Kxf1 {[%clk 0:01:23]}  Rxd6 {[%clk 0:02:02]} 22. Rxe8+ {[%clk 0:01:20]}  Nxe8 {[%clk 0:02:02]} 23. Ne4 {[%clk 0:01:21]}  Rb6 {[%clk 0:02:00]} 24. b3 {[%clk 0:01:15]}  a4 {[%clk 0:01:56]} 25. Nxc5 {[%clk 0:01:13]}  a3 {[%clk 0:01:55]} 26. Re1 {[%clk 0:01:00]}  Rf6+ {[%clk 0:01:52]} 27. Kg2 {[%clk 0:00:59]}  Nd6 {[%clk 0:01:52]} 28. Ne4 {[%clk 0:00:50]}  Nxe4 {[%clk 0:01:49]} 29. Rxe4 {[%clk 0:00:51]}  Kf8 {[%clk 0:01:50]} 30. c5 {[%clk 0:00:51]}  Rf5 {[%clk 0:01:49]} 31. Rd4 {[%clk 0:00:35]}  Ke8 {[%clk 0:01:48]} 32. g4 {[%clk 0:00:34]}  Rf6 {[%clk 0:01:46]} 33. d6 {[%clk 0:00:29]}  Rg6 {[%clk 0:01:41]} 34. Re4+ {[%clk 0:00:25]}  Kd8 {[%clk 0:01:37]} 35. h3 {[%clk 0:00:18]}  Rg5 {[%clk 0:01:35]} 36. b4 {[%clk 0:00:19]}  Rd5 {[%clk 0:01:29]} 37. Re2 {[%clk 0:00:09]}  Rd4 {[%clk 0:01:27]} 38. Re7 {[%clk 0:00:08]}  Rxb4 {[%clk 0:01:23]} 39. Rxf7 {[%clk 0:00:07]}  Rc4 {[%clk 0:01:14]} 40. Rxb7 {[%clk 0:00:01]}  Rxc5 {[%clk 0:01:12]} 41. Rxg7 {[%clk 0:00:02]}  h5 {[%clk 0:01:10]} 42. Rg8+ {[%clk 0:00:01]}  Kd7 {[%clk 0:01:10]} 43. Ra8 {[%clk 0:00:02]}  hxg4 {[%clk 0:01:06]} 44. hxg4 {[%clk 0:00:03]}  Rc2+ {[%clk 0:01:06]} 45. Kg3 {[%clk 0:00:03]}  Rxa2 {[%clk 0:01:05]} 46. Kh4 {[%clk 0:00:03]}  Kxd6 {[%clk 0:01:02]} 47. Kg5 {[%clk 0:00:04]}  Ke6 {[%clk 0:00:58]} 48. Kg6 {[%clk 0:00:03]}  Rg2 {[%clk 0:00:57]} 49. g5 {[%clk 0:00:02]}  a2 {[%clk 0:00:58]} 50. Ra6+ {[%clk 0:00:03]}  Ke7 {[%clk 0:00:58]} 51. Ra7+ {[%clk 0:00:02]}  Ke6 {[%clk 0:00:58]} 52. Ra6+ {[%clk 0:00:03]}  Ke7 {[%clk 0:00:58]} 53. Ra7+ {[%clk 0:00:03]}  Ke6 {[%clk 0:00:59]} 54. Ra6+ {[%clk 0:00:04]} 1/2-1/2


[Site "https://www.chess.com"]

[Event "Titled Tuesday Blitz February 21 Early 2023"]
[White "Buksa, Nataliya"]
[Black "Cramling Bellon, Anna"]
[WhiteFideId "14123622"]
[BlackFideId "32009232"]
[WhiteElo "2406"]
[BlackElo "2043"]
[Result "0-1"]
[Round "04"]
[TimeControl "180+2"]
[Date "2023.02.21"]
[WhiteClock "0:00:56"]
[BlackClock "0:00:09"]

1. d4 {[%clk 0:02:57]}  Nf6 {[%clk 0:03:00]} 2. Nc3 {[%clk 0:02:56]}  d5 {[%clk 0:02:59]} 3. Bf4 {[%clk 0:02:56]}  a6 {[%clk 0:02:59]} 4. e3 {[%clk 0:02:56]}  c5 {[%clk 0:02:58]} 5. Nf3 {[%clk 0:02:57]}  Nc6 {[%clk 0:02:58]} 6. dxc5 {[%clk 0:02:56]}  e6 {[%clk 0:02:59]} 7. Na4 {[%clk 0:02:52]}  Bxc5 {[%clk 0:02:55]} 8. Nxc5 {[%clk 0:02:52]}  Qa5+ {[%clk 0:02:56]} 9. c3 {[%clk 0:02:53]}  Qxc5 {[%clk 0:02:56]} 10. Be2 {[%clk 0:02:53]}  O-O {[%clk 0:02:55]} 11. O-O {[%clk 0:02:54]}  Qe7 {[%clk 0:02:55]} 12. c4 {[%clk 0:02:50]}  dxc4 {[%clk 0:02:52]} 13. Bxc4 {[%clk 0:02:50]}  e5 {[%clk 0:02:46]} 14. Bg5 {[%clk 0:02:48]}  Bg4 {[%clk 0:02:39]} 15. h3 {[%clk 0:02:48]}  Bh5 {[%clk 0:02:35]} 16. Be2 {[%clk 0:02:48]}  Rfd8 {[%clk 0:02:34]} 17. Qb3 {[%clk 0:02:47]}  e4 {[%clk 0:02:26]} 18. Nd4 {[%clk 0:02:35]}  Nxd4 {[%clk 0:02:26]} 19. exd4 {[%clk 0:02:36]}  Bxe2 {[%clk 0:02:25]} 20. Rfe1 {[%clk 0:02:37]}  Bh5 {[%clk 0:02:19]} 21. Bxf6 {[%clk 0:02:29]}  Qxf6 {[%clk 0:02:19]} 22. Qxb7 {[%clk 0:02:29]}  Qxd4 {[%clk 0:02:03]} 23. Rxe4 {[%clk 0:02:29]}  Qd2 {[%clk 0:01:47]} 24. Rae1 {[%clk 0:02:28]}  h6 {[%clk 0:01:42]} 25. a4 {[%clk 0:01:56]}  Rdb8 {[%clk 0:01:29]} 26. Qc6 {[%clk 0:01:55]}  Qxb2 {[%clk 0:01:24]} 27. Re7 {[%clk 0:01:40]}  Rc8 {[%clk 0:01:01]} 28. Qe4 {[%clk 0:01:35]}  Bg6 {[%clk 0:00:55]} 29. Qf4 {[%clk 0:01:33]}  Qb8 {[%clk 0:00:47]} 30. Qf3 {[%clk 0:01:25]}  Qd6 {[%clk 0:00:45]} 31. h4 {[%clk 0:01:24]}  Qf6 {[%clk 0:00:36]} 32. Qg4 {[%clk 0:01:21]}  Rc2 {[%clk 0:00:29]} 33. f3 {[%clk 0:01:20]}  h5 {[%clk 0:00:24]} 34. Qg3 {[%clk 0:01:20]}  Rd8 {[%clk 0:00:21]} 35. Re8+ {[%clk 0:01:12]}  Rxe8 {[%clk 0:00:21]} 36. Rxe8+ {[%clk 0:01:12]}  Kh7 {[%clk 0:00:21]} 37. Qb8 {[%clk 0:01:12]}  Rc1+ {[%clk 0:00:12]} 38. Kf2 {[%clk 0:01:11]}  Qxh4+ {[%clk 0:00:12]} 39. Ke3 {[%clk 0:00:58]}  Re1+ {[%clk 0:00:12]} 40. Kd2 {[%clk 0:00:58]}  Qf2+ {[%clk 0:00:09]} 41. Kc3 {[%clk 0:00:58]}  Rxe8 {[%clk 0:00:08]} 42. Qxe8 {[%clk 0:00:57]}  Qc2+ {[%clk 0:00:08]} 43. Kb4 {[%clk 0:00:55]}  Qb2+ {[%clk 0:00:04]} 44. Ka5 {[%clk 0:00:54]}  Qb7 {[%clk 0:00:04]} 45. Qe5 {[%clk 0:00:51]}  Kg8 {[%clk 0:00:03]} 46. Qe8+ {[%clk 0:00:50]}  Kh7 {[%clk 0:00:03]} 47. Qe5 {[%clk 0:00:51]}  Qd7 {[%clk 0:00:02]} 48. Qf4 {[%clk 0:00:45]}  Qf5+ {[%clk 0:00:02]} 49. Qxf5 {[%clk 0:00:44]}  Bxf5 {[%clk 0:00:03]} 50. Kxa6 {[%clk 0:00:45]}  Bd3+ {[%clk 0:00:03]} 51. Kb6 {[%clk 0:00:45]}  g5 {[%clk 0:00:04]} 52. Kc5 {[%clk 0:00:46]}  f5 {[%clk 0:00:04]} 53. Kd4 {[%clk 0:00:46]}  Bf1 {[%clk 0:00:04]} 54. g3 {[%clk 0:00:46]}  h4 {[%clk 0:00:05]} 55. gxh4 {[%clk 0:00:46]}  gxh4 {[%clk 0:00:06]} 56. Ke3 {[%clk 0:00:47]}  h3 {[%clk 0:00:06]} 57. Kf2 {[%clk 0:00:47]}  Bc4 {[%clk 0:00:03]} 58. Kg3 {[%clk 0:00:47]}  Kg6 {[%clk 0:00:03]} 59. Kxh3 {[%clk 0:00:48]}  Kg5 {[%clk 0:00:04]} 60. Kg3 {[%clk 0:00:48]}  f4+ {[%clk 0:00:04]} 61. Kf2 {[%clk 0:00:48]}  Kf5 {[%clk 0:00:05]} 62. Ke1 {[%clk 0:00:47]}  Ke5 {[%clk 0:00:05]} 63. Kd2 {[%clk 0:00:48]}  Kd4 {[%clk 0:00:05]} 64. a5 {[%clk 0:00:48]}  Ba6 {[%clk 0:00:05]} 65. Ke1 {[%clk 0:00:48]}  Ke3 {[%clk 0:00:06]} 66. Kd1 {[%clk 0:00:48]}  Kxf3 {[%clk 0:00:06]} 67. Ke1 {[%clk 0:00:49]}  Kg2 {[%clk 0:00:06]} 68. Kd2 {[%clk 0:00:50]}  f3 {[%clk 0:00:07]} 69. Ke3 {[%clk 0:00:50]}  f2 {[%clk 0:00:07]} 70. Kd4 {[%clk 0:00:51]}  f1=Q {[%clk 0:00:08]} 71. Kc5 {[%clk 0:00:52]}  Qb5+ {[%clk 0:00:08]} 72. Kd6 {[%clk 0:00:52]}  Qxa5 {[%clk 0:00:09]} 73. Kc6 {[%clk 0:00:52]}  Qb5+ {[%clk 0:00:09]} 74. Kc7 {[%clk 0:00:53]}  Kf3 {[%clk 0:00:08]} 75. Kd8 {[%clk 0:00:53]}  Qb7 {[%clk 0:00:08]} 76. Ke8 {[%clk 0:00:53]}  Ke4 {[%clk 0:00:08]} 77. Kf8 {[%clk 0:00:54]}  Kf5 {[%clk 0:00:09]} 78. Kg8 {[%clk 0:00:55]}  Kg6 {[%clk 0:00:09]} 79. Kh8 {[%clk 0:00:56]}  Qg7# {[%clk 0:00:09]} 0-1


[Site "https://www.chess.com"]

[Event "Titled Tuesday Blitz February 21 Early 2023"]
[White "Winkels, Marcel"]
[Black "Sarkar, Justin"]
[WhiteFideId "1003887"]
[BlackFideId "2010011"]
[WhiteElo "1960"]
[BlackElo "2309"]
[Result "1-0"]
[Round "04"]
[TimeControl "180+2"]
[Date "2023.02.21"]
[WhiteClock "0:00:32"]
[BlackClock "0:00:01"]

1. e4 {[%clk 0:03:00]}  c5 {[%clk 0:02:53]} 2. Nf3 {[%clk 0:03:00]}  Nc6 {[%clk 0:02:51]} 3. d4 {[%clk 0:02:57]}  cxd4 {[%clk 0:02:50]} 4. Nxd4 {[%clk 0:02:57]}  g6 {[%clk 0:02:48]} 5. c4 {[%clk 0:02:55]}  Bg7 {[%clk 0:02:46]} 6. Nc2 {[%clk 0:02:50]}  Nf6 {[%clk 0:02:40]} 7. Nc3 {[%clk 0:02:48]}  d6 {[%clk 0:02:38]} 8. Bd3 {[%clk 0:02:48]}  O-O {[%clk 0:02:35]} 9. O-O {[%clk 0:02:47]}  Nd7 {[%clk 0:02:32]} 10. Bg5 {[%clk 0:02:40]}  Bxc3 {[%clk 0:02:23]} 11. bxc3 {[%clk 0:02:36]}  Nc5 {[%clk 0:02:23]} 12. Ne3 {[%clk 0:02:24]}  Ne5 {[%clk 0:01:51]} 13. Bc2 {[%clk 0:02:15]}  Be6 {[%clk 0:01:45]} 14. Nd5 {[%clk 0:02:07]}  f6 {[%clk 0:01:36]} 15. Bh6 {[%clk 0:02:00]}  Re8 {[%clk 0:01:35]} 16. Qe2 {[%clk 0:01:57]}  Rc8 {[%clk 0:01:23]} 17. f4 {[%clk 0:01:54]}  Nf7 {[%clk 0:01:13]} 18. f5 {[%clk 0:01:52]}  Bxd5 {[%clk 0:01:10]} 19. exd5 {[%clk 0:01:50]}  Nxh6 {[%clk 0:01:09]} 20. fxg6 {[%clk 0:01:49]}  hxg6 {[%clk 0:00:30]} 21. Bxg6 {[%clk 0:01:44]}  Kg7 {[%clk 0:00:29]} 22. Bxe8 {[%clk 0:01:26]}  Qxe8 {[%clk 0:00:29]} 23. Rf3 {[%clk 0:01:27]}  Qf7 {[%clk 0:00:12]} 24. Rg3+ {[%clk 0:01:25]}  Kf8 {[%clk 0:00:08]} 25. Qd2 {[%clk 0:01:16]}  Nf5 {[%clk 0:00:07]} 26. Rf3 {[%clk 0:01:12]}  Qg6 {[%clk 0:00:02]} 27. Raf1 {[%clk 0:01:05]}  Ng7 {[%clk 0:00:02]} 28. Rg3 {[%clk 0:01:04]}  Qf7 {[%clk 0:00:02]} 29. Qh6 {[%clk 0:01:00]}  Ne4 {[%clk 0:00:01]} 30. Rg4 {[%clk 0:00:57]}  f5 {[%clk 0:00:01]} 31. Rxe4 {[%clk 0:00:55]}  fxe4 {[%clk 0:00:02]} 32. Rxf7+ {[%clk 0:00:54]}  Kxf7 {[%clk 0:00:02]} 33. Qf4+ {[%clk 0:00:55]}  Kg8 {[%clk 0:00:02]} 34. Qxe4 {[%clk 0:00:54]}  Kf7 {[%clk 0:00:02]} 35. h4 {[%clk 0:00:53]}  Rc5 {[%clk 0:00:02]} 36. h5 {[%clk 0:00:52]}  Nxh5 {[%clk 0:00:02]} 37. Qh7+ {[%clk 0:00:51]}  Ng7 {[%clk 0:00:02]} 38. Qe4 {[%clk 0:00:49]}  a5 {[%clk 0:00:02]} 39. g4 {[%clk 0:00:47]}  a4 {[%clk 0:00:02]} 40. g5 {[%clk 0:00:45]}  a3 {[%clk 0:00:02]} 41. g6+ {[%clk 0:00:45]}  Kf6 {[%clk 0:00:02]} 42. Kf2 {[%clk 0:00:41]}  b5 {[%clk 0:00:02]} 43. cxb5 {[%clk 0:00:39]}  Rxb5 {[%clk 0:00:02]} 44. Ke3 {[%clk 0:00:36]}  Rb2 {[%clk 0:00:01]} 45. Qd4+ {[%clk 0:00:35]}  Kxg6 {[%clk 0:00:01]} 46. Qc4 {[%clk 0:00:32]} 1-0


[Site "https://www.chess.com"]

[Event "Titled Tuesday Blitz February 21 Early 2023"]
[White "Hernandez Bonilla, Amelia"]
[Black "Buganca, Luiz Henrique Da Silva"]
[WhiteFideId "3900193"]
[BlackFideId "2182289"]
[WhiteElo "1960"]
[BlackElo "1920"]
[Result "1-0"]
[Round "04"]
[TimeControl "180+2"]
[Date "2023.02.21"]
[WhiteClock "0:00:06"]
[BlackClock "0:00:01"]

1. d4 {[%clk 0:03:00]}  Nf6 {[%clk 0:02:59]} 2. Bf4 {[%clk 0:03:00]}  c5 {[%clk 0:02:58]} 3. d5 {[%clk 0:02:59]}  e6 {[%clk 0:02:58]} 4. c4 {[%clk 0:02:58]}  exd5 {[%clk 0:02:57]} 5. cxd5 {[%clk 0:02:59]}  d6 {[%clk 0:02:58]} 6. Nc3 {[%clk 0:02:59]}  g6 {[%clk 0:02:58]} 7. e4 {[%clk 0:02:58]}  Bg7 {[%clk 0:02:58]} 8. Nf3 {[%clk 0:02:58]}  O-O {[%clk 0:02:58]} 9. Be2 {[%clk 0:02:58]}  Qe7 {[%clk 0:02:57]} 10. Nd2 {[%clk 0:02:56]}  a6 {[%clk 0:02:51]} 11. a4 {[%clk 0:02:56]}  Nfd7 {[%clk 0:02:50]} 12. O-O {[%clk 0:02:52]}  Ne5 {[%clk 0:02:50]} 13. Be3 {[%clk 0:02:46]}  h5 {[%clk 0:02:34]} 14. h3 {[%clk 0:02:37]}  Re8 {[%clk 0:02:15]} 15. f4 {[%clk 0:02:30]}  Ned7 {[%clk 0:02:15]} 16. Bf3 {[%clk 0:02:30]}  Nf8 {[%clk 0:02:07]} 17. Bf2 {[%clk 0:02:27]}  Nbd7 {[%clk 0:02:06]} 18. Re1 {[%clk 0:02:24]}  Qd8 {[%clk 0:02:06]} 19. Nc4 {[%clk 0:02:20]}  Nb6 {[%clk 0:02:04]} 20. Nd2 {[%clk 0:02:12]}  Rb8 {[%clk 0:01:55]} 21. a5 {[%clk 0:02:10]}  Na8 {[%clk 0:01:54]} 22. Nc4 {[%clk 0:02:09]}  b5 {[%clk 0:01:52]} 23. axb6 {[%clk 0:02:08]}  Nxb6 {[%clk 0:01:52]} 24. Na5 {[%clk 0:02:08]}  Bd7 {[%clk 0:01:46]} 25. Qd3 {[%clk 0:01:55]}  Qc8 {[%clk 0:01:41]} 26. Bg3 {[%clk 0:01:46]}  Na8 {[%clk 0:01:31]} 27. Ra2 {[%clk 0:01:39]}  Rb4 {[%clk 0:01:27]} 28. e5 {[%clk 0:01:30]}  h4 {[%clk 0:01:08]} 29. Bh2 {[%clk 0:01:28]}  Bf5 {[%clk 0:01:03]} 30. Qf1 {[%clk 0:01:16]}  Nb6 {[%clk 0:00:49]} 31. Nc6 {[%clk 0:01:14]}  Nc4 {[%clk 0:00:20]} 32. Nxb4 {[%clk 0:01:02]}  cxb4 {[%clk 0:00:21]} 33. Ne4 {[%clk 0:01:02]}  dxe5 {[%clk 0:00:21]} 34. Rc1 {[%clk 0:00:54]}  Bxe4 {[%clk 0:00:13]} 35. Rxc4 {[%clk 0:00:50]}  Bxf3 {[%clk 0:00:13]} 36. Rxc8 {[%clk 0:00:49]}  Rxc8 {[%clk 0:00:13]} 37. gxf3 {[%clk 0:00:47]}  exf4 {[%clk 0:00:12]} 38. Bxf4 {[%clk 0:00:45]}  b3 {[%clk 0:00:13]} 39. Rxa6 {[%clk 0:00:42]}  Bxb2 {[%clk 0:00:13]} 40. Rc6 {[%clk 0:00:41]}  Bd4+ {[%clk 0:00:11]} 41. Kg2 {[%clk 0:00:41]}  Ra8 {[%clk 0:00:10]} 42. Rc1 {[%clk 0:00:11]}  Ra2+ {[%clk 0:00:09]} 43. Kh1 {[%clk 0:00:11]}  Rf2 {[%clk 0:00:09]} 44. Qd1 {[%clk 0:00:09]}  Bf6 {[%clk 0:00:01]} 45. d6 {[%clk 0:00:06]} 1-0


[Site "https://www.chess.com"]

[Event "Titled Tuesday Blitz February 21 Early 2023"]
[White "Seifert, Henryk"]
[Black "Smith, Garrett L"]
[WhiteFideId "1100963"]
[BlackFideId "2024829"]
[WhiteElo "2106"]
[BlackElo "2047"]
[Result "0-1"]
[Round "04"]
[TimeControl "180+2"]
[Date "2023.02.21"]
[WhiteClock "0:00:01"]
[BlackClock "0:00:23"]

1. e4 {[%clk 0:02:59]}  c5 {[%clk 0:03:00]} 2. Nf3 {[%clk 0:02:58]}  Nc6 {[%clk 0:03:00]} 3. Bb5 {[%clk 0:02:56]}  e6 {[%clk 0:03:00]} 4. O-O {[%clk 0:02:53]}  Nge7 {[%clk 0:03:00]} 5. Re1 {[%clk 0:02:52]}  a6 {[%clk 0:03:00]} 6. Bf1 {[%clk 0:02:50]}  d5 {[%clk 0:03:00]} 7. exd5 {[%clk 0:02:46]}  Nxd5 {[%clk 0:03:01]} 8. d4 {[%clk 0:02:43]}  Nf6 {[%clk 0:03:01]} 9. Be3 {[%clk 0:02:34]}  Ng4 {[%clk 0:02:39]} 10. c3 {[%clk 0:02:15]}  Nxe3 {[%clk 0:02:36]} 11. fxe3 {[%clk 0:02:15]}  Be7 {[%clk 0:02:34]} 12. Bd3 {[%clk 0:02:13]}  O-O {[%clk 0:02:32]} 13. Nbd2 {[%clk 0:02:10]}  h6 {[%clk 0:02:09]} 14. Rc1 {[%clk 0:01:58]}  e5 {[%clk 0:02:08]} 15. Bb1 {[%clk 0:01:52]}  Bf6 {[%clk 0:01:51]} 16. Nb3 {[%clk 0:01:22]}  cxd4 {[%clk 0:01:48]} 17. exd4 {[%clk 0:01:17]}  Bg4 {[%clk 0:01:36]} 18. d5 {[%clk 0:00:56]}  Ne7 {[%clk 0:01:24]} 19. c4 {[%clk 0:00:52]}  Qd6 {[%clk 0:01:14]} 20. h3 {[%clk 0:00:38]}  Bh5 {[%clk 0:01:12]} 21. Nbd2 {[%clk 0:00:24]}  Bg6 {[%clk 0:00:59]} 22. Ne4 {[%clk 0:00:20]}  Qb6+ {[%clk 0:00:55]} 23. Kh1 {[%clk 0:00:19]}  Nf5 {[%clk 0:00:51]} 24. Nxf6+ {[%clk 0:00:16]}  Qxf6 {[%clk 0:00:50]} 25. Nxe5 {[%clk 0:00:15]}  Ng3+ {[%clk 0:00:49]} 26. Kh2 {[%clk 0:00:14]}  Qf4 {[%clk 0:00:46]} 27. Nxg6 {[%clk 0:00:11]}  fxg6 {[%clk 0:00:40]} 28. Qf3 {[%clk 0:00:08]}  Qxf3 {[%clk 0:00:34]} 29. gxf3 {[%clk 0:00:07]}  Rxf3 {[%clk 0:00:35]} 30. Kg2 {[%clk 0:00:07]}  Raf8 {[%clk 0:00:34]} 31. Rc2 {[%clk 0:00:05]}  g5 {[%clk 0:00:31]} 32. Rd2 {[%clk 0:00:05]}  Nh5 {[%clk 0:00:31]} 33. d6 {[%clk 0:00:04]}  Rg3+ {[%clk 0:00:32]} 34. Kh2 {[%clk 0:00:04]}  Rd8 {[%clk 0:00:26]} 35. d7 {[%clk 0:00:03]}  Nf6 {[%clk 0:00:26]} 36. Bf5 {[%clk 0:00:03]}  Rf3 {[%clk 0:00:24]} 37. Bg4 {[%clk 0:00:02]}  Nxg4+ {[%clk 0:00:23]} 38. hxg4 {[%clk 0:00:02]}  Rff8 {[%clk 0:00:23]} 39. Re7 {[%clk 0:00:02]}  Rf7 {[%clk 0:00:22]} 40. Rde2 {[%clk 0:00:01]}  Rxe7 {[%clk 0:00:22]} 41. Rxe7 {[%clk 0:00:01]}  Kf8 {[%clk 0:00:23]} 0-1


[Site "https://www.chess.com"]

[Event "Titled Tuesday Blitz February 21 Early 2023"]
[White "Ricaurte Lopez, Juan Carlos"]
[Black "Tsyhanchuk, Stanislav"]
[WhiteFideId "3600327"]
[BlackFideId "13505130"]
[WhiteElo "2226"]
[BlackElo "2273"]
[Result "0-1"]
[Round "04"]
[TimeControl "180+2"]
[Date "2023.02.21"]
[WhiteClock "0:00:01"]
[BlackClock "0:00:03"]

1. e4 {[%clk 0:03:00]}  c5 {[%clk 0:03:00]} 2. Nf3 {[%clk 0:02:57]}  d6 {[%clk 0:02:59]} 3. d4 {[%clk 0:02:56]}  cxd4 {[%clk 0:02:59]} 4. c3 {[%clk 0:02:51]}  dxc3 {[%clk 0:02:56]} 5. Nxc3 {[%clk 0:02:51]}  Nc6 {[%clk 0:02:54]} 6. Bc4 {[%clk 0:02:50]}  e6 {[%clk 0:02:53]} 7. O-O {[%clk 0:02:47]}  Nf6 {[%clk 0:02:52]} 8. Qe2 {[%clk 0:02:45]}  Be7 {[%clk 0:02:46]} 9. Rd1 {[%clk 0:02:44]}  e5 {[%clk 0:02:45]} 10. Be3 {[%clk 0:02:34]}  a6 {[%clk 0:02:44]} 11. Rd2 {[%clk 0:02:30]}  Bg4 {[%clk 0:02:33]} 12. Rad1 {[%clk 0:02:27]}  O-O {[%clk 0:02:10]} 13. Nd5 {[%clk 0:02:06]}  b5 {[%clk 0:01:46]} 14. Nxf6+ {[%clk 0:01:56]}  gxf6 {[%clk 0:01:39]} 15. Bd5 {[%clk 0:01:55]}  Rc8 {[%clk 0:01:36]} 16. a4 {[%clk 0:01:54]}  bxa4 {[%clk 0:01:25]} 17. Qxa6 {[%clk 0:01:50]}  Nb4 {[%clk 0:01:22]} 18. Qxa4 {[%clk 0:01:48]}  Nxd5 {[%clk 0:01:22]} 19. Rxd5 {[%clk 0:01:47]}  Qc7 {[%clk 0:01:14]} 20. Rc1 {[%clk 0:01:21]}  Qb7 {[%clk 0:00:48]} 21. Rb5 {[%clk 0:01:15]}  Rxc1+ {[%clk 0:00:41]} 22. Bxc1 {[%clk 0:01:14]}  Qc6 {[%clk 0:00:38]} 23. Bh6 {[%clk 0:01:02]}  Rc8 {[%clk 0:00:33]} 24. Qb4 {[%clk 0:00:17]}  d5 {[%clk 0:00:16]} 25. exd5 {[%clk 0:00:16]}  Qc2 {[%clk 0:00:05]} 26. Qxg4+ {[%clk 0:00:13]}  Qg6 {[%clk 0:00:03]} 27. Qxg6+ {[%clk 0:00:10]}  fxg6 {[%clk 0:00:04]} 28. h4 {[%clk 0:00:08]}  Kf7 {[%clk 0:00:04]} 29. Rb7 {[%clk 0:00:07]}  Ke8 {[%clk 0:00:04]} 30. h5 {[%clk 0:00:05]}  g5 {[%clk 0:00:04]} 31. Nd2 {[%clk 0:00:03]}  Rc1+ {[%clk 0:00:04]} 32. Kh2 {[%clk 0:00:02]}  Bc5 {[%clk 0:00:04]} 33. Ne4 {[%clk 0:00:01]}  Be7 {[%clk 0:00:02]} 34. d6 {[%clk 0:00:01]}  Bd8 {[%clk 0:00:03]} 0-1


[Site "https://www.chess.com"]

[Event "Titled Tuesday Blitz February 21 Early 2023"]
[White "Kotepalli, Sai Nirupama"]
[Black "Calcada, Lucas Galvan"]
[WhiteFideId "5039444"]
[BlackFideId "22746099"]
[WhiteElo "1910"]
[BlackElo "1739"]
[Result "1-0"]
[Round "04"]
[TimeControl "180+2"]
[Date "2023.02.21"]
[WhiteClock "0:00:22"]
[BlackClock "0:00:05"]

1. e4 {[%clk 0:02:59]}  c5 {[%clk 0:02:55]} 2. Nf3 {[%clk 0:02:59]}  d6 {[%clk 0:02:53]} 3. d3 {[%clk 0:02:59]}  g6 {[%clk 0:02:50]} 4. g3 {[%clk 0:02:59]}  Bg7 {[%clk 0:02:51]} 5. Bg2 {[%clk 0:02:59]}  Nc6 {[%clk 0:02:50]} 6. O-O {[%clk 0:02:59]}  e5 {[%clk 0:02:49]} 7. c3 {[%clk 0:02:59]}  Nge7 {[%clk 0:02:47]} 8. a3 {[%clk 0:02:59]}  O-O {[%clk 0:02:45]} 9. b4 {[%clk 0:02:58]}  b6 {[%clk 0:02:40]} 10. b5 {[%clk 0:02:56]}  Nb8 {[%clk 0:02:37]} 11. c4 {[%clk 0:02:55]}  Nd7 {[%clk 0:02:32]} 12. a4 {[%clk 0:02:51]}  a5 {[%clk 0:02:22]} 13. bxa6 {[%clk 0:02:50]}  Rxa6 {[%clk 0:02:19]} 14. Nc3 {[%clk 0:02:46]}  Re8 {[%clk 0:02:17]} 15. Nb5 {[%clk 0:02:39]}  Nf8 {[%clk 0:02:15]} 16. h4 {[%clk 0:02:34]}  Bg4 {[%clk 0:02:13]} 17. Qb3 {[%clk 0:02:34]}  Ne6 {[%clk 0:02:09]} 18. Bd2 {[%clk 0:02:32]}  Nc6 {[%clk 0:02:05]} 19. Bc3 {[%clk 0:02:28]}  Qd7 {[%clk 0:01:41]} 20. Rfe1 {[%clk 0:02:20]}  f5 {[%clk 0:01:37]} 21. Nh2 {[%clk 0:02:17]}  Bh5 {[%clk 0:01:31]} 22. exf5 {[%clk 0:02:15]}  gxf5 {[%clk 0:01:30]} 23. Bd5 {[%clk 0:02:14]}  Kh8 {[%clk 0:01:25]} 24. f4 {[%clk 0:02:04]}  exf4 {[%clk 0:01:00]} 25. Bxe6 {[%clk 0:01:33]}  Rxe6 {[%clk 0:00:57]} 26. Bxg7+ {[%clk 0:01:29]}  Qxg7 {[%clk 0:00:47]} 27. Rxe6 {[%clk 0:01:23]}  Qxa1+ {[%clk 0:00:39]} 28. Kg2 {[%clk 0:01:21]}  Qg7 {[%clk 0:00:38]} 29. Nf1 {[%clk 0:01:16]}  fxg3 {[%clk 0:00:35]} 30. Rxd6 {[%clk 0:01:09]}  f4 {[%clk 0:00:35]} 31. Rxc6 {[%clk 0:00:45]}  f3+ {[%clk 0:00:34]} 32. Kg1 {[%clk 0:00:45]}  Ra8 {[%clk 0:00:29]} 33. Qc3 {[%clk 0:00:41]}  f2+ {[%clk 0:00:14]} 34. Kg2 {[%clk 0:00:41]}  Be8 {[%clk 0:00:07]} 35. Qxg7+ {[%clk 0:00:37]}  Kxg7 {[%clk 0:00:07]} 36. Rxb6 {[%clk 0:00:32]}  Bg6 {[%clk 0:00:04]} 37. Nxg3 {[%clk 0:00:28]}  Bxd3 {[%clk 0:00:05]} 38. Nh5+ {[%clk 0:00:22]} 1-0


[Site "https://www.chess.com"]

[Event "Titled Tuesday Blitz February 21 Early 2023"]
[White "Dias, Joao Batista"]
[Black "Levitan, Caleb Levi"]
[WhiteFideId "2108240"]
[BlackFideId "14332620"]
[WhiteElo "1796"]
[BlackElo "2129"]
[Result "0-1"]
[Round "04"]
[TimeControl "180+2"]
[Date "2023.02.21"]
[WhiteClock "0:01:52"]
[BlackClock "0:01:04"]

1. e4 {[%clk 0:02:56]}  c5 {[%clk 0:02:59]} 2. Nf3 {[%clk 0:02:55]}  e6 {[%clk 0:02:59]} 3. Bc4 {[%clk 0:02:55]}  d5 {[%clk 0:02:56]} 4. exd5 {[%clk 0:02:55]}  exd5 {[%clk 0:02:55]} 5. Bb5+ {[%clk 0:02:56]}  Bd7 {[%clk 0:02:53]} 6. Be2 {[%clk 0:02:56]}  Nf6 {[%clk 0:02:51]} 7. O-O {[%clk 0:02:55]}  Nc6 {[%clk 0:02:51]} 8. d3 {[%clk 0:02:55]}  Be7 {[%clk 0:02:51]} 9. c3 {[%clk 0:02:55]}  O-O {[%clk 0:02:51]} 10. Bg5 {[%clk 0:02:54]}  h6 {[%clk 0:02:50]} 11. Bh4 {[%clk 0:02:54]}  Bf5 {[%clk 0:02:50]} 12. Nbd2 {[%clk 0:02:53]}  Re8 {[%clk 0:02:49]} 13. Re1 {[%clk 0:02:53]}  d4 {[%clk 0:02:29]} 14. c4 {[%clk 0:02:50]}  Nd7 {[%clk 0:02:18]} 15. Bxe7 {[%clk 0:02:49]}  Qxe7 {[%clk 0:02:19]} 16. Bf1 {[%clk 0:02:48]}  Qf6 {[%clk 0:02:12]} 17. a3 {[%clk 0:02:42]}  Nde5 {[%clk 0:02:10]} 18. Nxe5 {[%clk 0:02:36]}  Nxe5 {[%clk 0:02:11]} 19. Ne4 {[%clk 0:02:35]}  Qg6 {[%clk 0:02:07]} 20. Nxc5 {[%clk 0:02:23]}  b6 {[%clk 0:01:48]} 21. Ne4 {[%clk 0:02:21]}  Rad8 {[%clk 0:01:08]} 22. Rc1 {[%clk 0:01:52]}  Bg4 {[%clk 0:01:04]} 0-1


[Site "https://www.chess.com"]